[Event "Belt and Road Women 2024"]
[Site "Yuecheng Shaoxing"]
[Date "2024.07.25"]
[Round "2.14"]
[White "Chen, Yining"]
[Black "Zhang, Lanlin"]
[Result "1/2-1/2"]
[ECO "E40"]
[WhiteElo "2300"]
[BlackElo "2161"]
[Annotator "RC"]
[PlyCount "175"]
[EventDate "2024.08.01"]
[EventType "swiss"]
[EventCountry "CHN"]
[SourceTitle "playchess.com"]
[Source "ChessBase"]
[SourceQuality "1"]
[TimeControl "5400+30"]

1. d4 {[%emt 0:00:04]} Nf6 {[%emt 0:00:31]} 2. c4 {[%emt 0:00:07]} e6 {[%emt 0:00:04]} 3. Nc3 {[%emt 0:00:26]} Bb4 {[%emt 0:00:25]} 4. e3 {[%emt 0:00:26]} d5 {[%emt 0:01:13]} 5. a3 {[%emt 0:00:44]} Bxc3+ {[%emt 0:00:23]} 6. bxc3 {[%emt 0:00:09]} O-O {[%emt 0:00:06]} 7. a4 {[%emt 0:02:26]} b6 {[%emt 0:05:32]} 8. Ba3 {[%emt 0:05:21]} Re8 {[%emt 0:00:14]} 9. Nf3 {[%emt 0:00:43]} Ba6 {[%emt 0:01:47]} 10. Qb3 {[%emt 0:14:18]} Nc6 {[%emt 0:05:56]} 11. Bb4 {[%emt 0:06:19]} e5 {[%emt 0:06:21]} 12. cxd5 {[%emt 0:03:36]} Bxf1 {[%emt 0:00:50]} 13. Kxf1 {[%emt 0:00:10]} Nxd5 {[%emt 0:01:15]} 14. dxe5 {[%emt 0:04:13]} Nxe5 {[%emt 0:27:27]} 15. Rd1 {[%emt 0:28:11]} Nxf3 {[%emt 0:00:15]} 16. Qxd5 {[%emt 0:02:38]} Qxd5 {[%emt 0:00:27]} 17. Rxd5 {[%emt 0:00:02]} Ne5 {[%emt 0:00:04]} 18. Ke2 {[%emt 0:01:31]} f5 {[%emt 0:00:14]} 19. g3 {[%emt 0:03:54]} Rad8 {[%emt 0:07:54]} 20. Rhd1 {[%emt 0:03:20]} Rc8 {[%emt 0:04:22]} 21. Ba3 {[%emt 0:02:31]} c6 {[%emt 0:12:38]} 22. R5d4 {[%emt 0:00:11]} c5 {[%emt 0:00:17]} 23. Rd5 {[%emt 0:00:32]} Rc7 {[%emt 0:00:17]} 24. Bc1 {[%emt 0:01:45]} g6 {[%emt 0:01:10]} 25. h3 {[%emt 0:01:12]} Kf7 {[%emt 0:07:14]} 26. Kf1 {[%emt 0:05:58]} Rce7 {[%emt 0:11:59]} 27. Kg2 {[%emt 0:01:11]} Re6 {[%emt 0:01:09]} 28. Rh1 {[%emt 0:01:13]} R6e7 {[%emt 0:00:30]} 29. Rhd1 {[%emt 0:02:27]} Re6 {[%emt 0:00:03]} 30. Kf1 {[%emt 0:01:58]} R6e7 {[%emt 0:02:34]} 31. Ke2 {[%emt 0:00:11]} Nc4 {[%emt 0:00:50]} 32. Rd7 {[%emt 0:03:14]} Ke6 {[%emt 0:00:50]} 33. Rxe7+ {[%emt 0:00:30]} Kxe7 {[%emt 0:00:05]} 34. g4 {[%emt 0:00:34]} Ke6 {[%emt 0:00:22]} 35. f3 {[%emt 0:00:45]} a6 {[%emt 0:00:12]} 36. gxf5+ {[%emt 0:00:28]} gxf5 {[%emt 0:00:05]} 37. Rg1 {[%emt 0:00:37]} Kf6 {[%emt 0:00:15]} 38. Rd1 {[%emt 0:01:41]} Ke6 {[%emt 0:01:25]} 39. Rg1 {[%emt 0:00:15]} Kf6 {[%emt 0:00:04]} 40. Rd1 {[%emt 0:00:05]} Rg8 {[%emt 0:00:52]} 41. Kf2 {[%emt 0:00:51]} Ke6 {[%emt 0:00:15]} 42. e4 {[%emt 0:01:20]} fxe4 {[%emt 0:01:09]} 43. Re1 {[%emt 0:00:37]} Ne5 {[%emt 0:01:46]} 44. Rxe4 {[%emt 0:00:41]} Kd5 {[%emt 0:00:07]} 45. Bf4 {[%emt 0:00:56]} Nd3+ {[%emt 0:00:52]} 46. Ke3 {[%emt 0:00:42]} Nxf4 {[%emt 0:00:04]} 47. c4+ {[%emt 0:00:43]} Kc6 {[%emt 0:01:00]} 48. Rxf4 {[%emt 0:01:00]} Rg6 {[%emt 0:00:11]} 49. Rh4 {[%emt 0:00:21]} h6 {[%emt 0:00:11]} 50. f4 {[%emt 0:00:57]} b5 {[%emt 0:00:22]} 51. axb5+ {[%emt 0:00:05]} axb5 {[%emt 0:00:03]} 52. cxb5+ {[%emt 0:00:12]} Kxb5 {[%emt 0:00:03]} 53. f5 {[%emt 0:00:19]} Rc6 {[%emt 0:00:34]} 54. Rf4 {[%emt 0:01:17]} c4 {[%emt 0:00:11]} 55. f6 {[%emt 0:00:56]} c3 {[%emt 0:00:04]} 56. f7 {[%emt 0:00:58]} c2 {[%emt 0:00:04]} 57. Rf1 {[%emt 0:00:11]} c1=Q+ {[%emt 0:03:21]} 58. Rxc1 {[%emt 0:00:05]} Rf6 {[%emt 0:00:01]} 59. Ke4 {[%emt 0:01:08]} Rxf7 {[%emt 0:00:05]} 60. Rc3 {[%emt 0:00:14]} Kb6 {[%emt 0:00:24]} 61. Ke5 {[%emt 0:00:21]} Rf1 {[%emt 0:00:38]} 62. h4 {[%emt 0:00:42]} h5 {[%emt 0:00:11]} 63. Rc4 {[%emt 0:00:12]} Kb5 {[%emt 0:00:17]} 64. Re4 {[%emt 0:00:41]} Kc6 {[%emt 0:00:19]} 65. Ke6 {[%emt 0:00:08]} Rc1 {[%emt 0:01:44]} 66. Kf6 {[%emt 0:00:55]} Rc5 {[%emt 0:00:32]} 67. Kg6 {[%emt 0:00:34]} Kd7 {[%emt 0:00:28]} 68. Kh6 {[%emt 0:00:17]} Ra5 {[%emt 0:00:17]} 69. Re1 {[%emt 0:00:38]} Rb5 {[%emt 0:00:15]} 70. Kg6 {[%emt 0:00:28]} Ra5 {[%emt 0:00:08]} 71. Re4 {[%emt 0:00:06]} Rb5 {[%emt 0:00:11]} 72. Kf6 {[%emt 0:00:05]} Ra5 {[%emt 0:00:33]} 73. Re7+ {[%emt 0:00:26]} Kd8 {[%emt 0:00:16]} 74. Rh7 {[%emt 0:00:14]} Ke8 {[%emt 0:00:08]} 75. Rh8+ {[%emt 0:00:05]} Kd7 {[%emt 0:00:04]} 76. Rh7+ {[%emt 0:01:48]} Kd6 {[%emt 0:01:02]} 77. Kg6 {[%emt 0:01:01]} Ke6 {[%emt 0:00:06]} 78. Rh8 {[%emt 0:00:06]} Ke7 {[%emt 0:00:12]} 79. Rg8 {[%emt 0:00:22]} Rb5 {[%emt 0:00:28]} 80. Rg7+ {[%emt 0:00:12]} Ke6 {[%emt 0:00:10]} 81. Ra7 {[%emt 0:00:17]} Rc5 {[%emt 0:00:48]} 82. Kh6 {[%emt 0:01:20]} Kf6 {[%emt 0:01:26]} 83. Ra6+ {[%emt 0:00:30]} Kf7 {[%emt 0:00:10]} 84. Ra4 {[%emt 0:00:28]} Rf5 {[%emt 0:00:44]} 85. Ra7+ {[%emt 0:00:25]} Kf6 {[%emt 0:00:06]} 86. Ra6+ {[%emt 0:00:13]} Kf7 {[%emt 0:00:05]} 87. Ra7+ {[%emt 0:00:08]} Kf6 {[%emt 0:00:03]} 88. Ra6+ {[%emt 0:01:00]} 1/2-1/2

[Event "Belt and Road Women 2024"]
[Site "Yuecheng Shaoxing"]
[Date "2024.07.25"]
[Round "2.15"]
[White "Wang, Chuqiao"]
[Black "Gu, Xiaobing"]
[Result "0-1"]
[ECO "E62"]
[WhiteElo "2278"]
[BlackElo "2135"]
[Annotator "RC"]
[PlyCount "62"]
[EventDate "2024.08.01"]
[EventType "swiss"]
[EventCountry "CHN"]
[SourceTitle "playchess.com"]
[Source "ChessBase"]
[SourceQuality "1"]
[TimeControl "5400+30"]

1. d4 {[%emt 0:00:04]} Nf6 {[%emt 0:00:05]} 2. c4 {[%emt 0:00:11]} g6 {[%emt 0:00:39]} 3. Nc3 {[%emt 0:00:31]} Bg7 {[%emt 0:00:03]} 4. g3 {[%emt 0:00:36]} d6 {[%emt 0:00:31]} 5. Nf3 {[%emt 0:00:26]} O-O {[%emt 0:00:24]} 6. Bg2 {[%emt 0:00:12]} Nc6 {[%emt 0:00:15]} 7. O-O {[%emt 0:05:41]} Rb8 {[%emt 0:00:05]} 8. Bd2 {[%emt 0:02:15]} e5 {[%emt 0:02:58]} 9. d5 {[%emt 0:10:20]} Ne7 {[%emt 0:01:39]} 10. e4 {[%emt 0:00:53]} c5 {[%emt 0:03:09]} 11. a3 {[%emt 0:02:09]} Ne8 {[%emt 0:03:02]} 12. b4 {[%emt 0:02:11]} b6 {[%emt 0:01:43]} 13. Ne1 {[%emt 0:10:25]} f5 {[%emt 0:00:45]} 14. Nd3 {[%emt 0:09:36]} fxe4 {[%emt 0:08:50]} 15. Nxe4 {[%emt 0:00:00]} Nf5 {[%emt 0:04:07]} 16. Rb1 {[%emt 0:00:00]} Ba6 {[%emt 0:05:28]} 17. b5 {[%emt 0:00:00]} Bc8 {[%emt 0:00:02]} 18. Nc3 {[%emt 0:13:46]} Rb7 {[%emt 0:06:33]} 19. a4 {[%emt 0:03:14]} Rbf7 {[%emt 0:05:14]} 20. Ne4 {[%emt 0:00:53]} h6 {[%emt 0:03:23]} 21. Bc3 {[%emt 0:02:56]} a5 {[%emt 0:04:39]} 22. Qd2 {[%emt 0:04:30]} Nf6 {[%emt 0:09:03]} 23. Rbe1 {[%emt 0:01:14]} Nxe4 {[%emt 0:04:15]} 24. Bxe4 {[%emt 0:00:26]} h5 {[%emt 0:00:38]} 25. f4 {[%emt 0:01:45]} Bh6 {[%emt 0:05:04]} 26. Qe2 {[%emt 0:02:58]} exf4 {[%emt 0:06:57]} 27. Nxf4 {[%emt 0:00:53]} Qg5 {[%emt 0:00:29]} 28. Ne6 {[%emt 0:05:53]} Nxg3 {[%emt 0:01:22]} 29. Nxg5 {[%emt 0:10:05]} Nxe2+ {[%emt 0:00:05]} 30. Kg2 {[%emt 0:00:03]} Rxf1 {[%emt 0:00:22]} 31. Bxg6 {[%emt 0:02:55]} R8f2# {[%emt 0:00:21]} 0-1

[Event "Belt and Road Women 2024"]
[Site "Yuecheng Shaoxing"]
[Date "2024.07.25"]
[Round "2.16"]
[White "Hu, Jiani"]
[Black "Soumya, Swaminathan"]
[Result "0-1"]
[ECO "B59"]
[WhiteElo "2148"]
[BlackElo "2258"]
[Annotator "RC"]
[PlyCount "136"]
[EventDate "2024.08.01"]
[EventType "swiss"]
[EventCountry "CHN"]
[SourceTitle "playchess.com"]
[Source "ChessBase"]
[SourceQuality "1"]
[TimeControl "5400+30"]

1. e4 {[%emt 0:00:02]} c5 {[%emt 0:00:17]} 2. Ne2 {[%emt 0:00:11]} Nc6 {[%emt 0:00:36]} 3. Nbc3 {[%emt 0:00:32]} d6 {[%emt 0:01:37]} 4. d4 {[%emt 0:05:18]} cxd4 {[%emt 0:00:24]} 5. Nxd4 {[%emt 0:00:04]} Nf6 {[%emt 0:00:11]} 6. Be2 {[%emt 0:00:34]} e5 {[%emt 0:00:30]} 7. Nb3 {[%emt 0:00:29]} Be7 {[%emt 0:00:41]} 8. Be3 {[%emt 0:03:30]} O-O {[%emt 0:03:03]} 9. O-O {[%emt 0:01:22]} a5 {[%emt 0:00:15]} 10. Bf3 {[%emt 0:04:35]} a4 {[%emt 0:25:48]} 11. Nd2 {[%emt 0:04:00]} a3 {[%emt 0:00:07]} 12. bxa3 {[%emt 0:07:45]} Rxa3 {[%emt 0:00:18]} 13. Nb3 {[%emt 0:00:32]} Nb8 {[%emt 0:08:38]} 14. h3 {[%emt 0:12:34]} Bd7 {[%emt 0:14:25]} 15. Bg5 {[%emt 0:13:36]} Qc8 {[%emt 0:06:04]} 16. Bxf6 {[%emt 0:02:01]} Bxf6 {[%emt 0:00:04]} 17. Nd5 {[%emt 0:04:46]} Bd8 {[%emt 0:00:04]} 18. Ne3 {[%emt 0:01:47]} Qc6 {[%emt 0:06:08]} 19. Qd3 {[%emt 0:04:21]} g6 {[%emt 0:04:12]} 20. Rfd1 {[%emt 0:02:56]} Ra6 {[%emt 0:00:21]} 21. a4 {[%emt 0:05:11]} Be6 {[%emt 0:03:29]} 22. Qb5 {[%emt 0:14:04]} Nd7 {[%emt 0:04:29]} 23. Qxc6 {[%emt 0:01:02]} Rxc6 {[%emt 0:00:06]} 24. Be2 {[%emt 0:00:29]} Nf6 {[%emt 0:01:27]} 25. Bb5 {[%emt 0:00:37]} Rc3 {[%emt 0:03:15]} 26. Nd2 {[%emt 0:06:14]} Bb6 {[%emt 0:03:44]} 27. Nec4 {[%emt 0:01:12]} Bxc4 {[%emt 0:10:42]} 28. Nxc4 {[%emt 0:00:46]} Bd4 {[%emt 0:00:03]} 29. Nxd6 {[%emt 0:01:06]} Rxc2 {[%emt 0:00:06]} 30. Rac1 {[%emt 0:00:39]} Bxf2+ {[%emt 0:01:47]} 31. Kf1 {[%emt 0:00:20]} Rb2 {[%emt 0:01:00]} 32. Rb1 {[%emt 0:01:43]} Rxb1 {[%emt 0:00:53]} 33. Rxb1 {[%emt 0:00:07]} Rd8 {[%emt 0:00:32]} 34. Kxf2 {[%emt 0:02:15]} Rxd6 {[%emt 0:00:03]} 35. Rb4 {[%emt 0:00:14]} b6 {[%emt 0:00:29]} 36. Ke3 {[%emt 0:00:36]} Kg7 {[%emt 0:00:53]} 37. Rc4 {[%emt 0:00:21]} h5 {[%emt 0:01:36]} 38. Rc7 {[%emt 0:00:53]} g5 {[%emt 0:00:19]} 39. Bc4 {[%emt 0:00:38]} Rd7 {[%emt 0:00:34]} 40. Rc6 {[%emt 0:00:26]} Rd4 {[%emt 0:00:14]} 41. Bd5 {[%emt 0:00:10]} Rxa4 {[%emt 0:00:42]} 42. Rxb6 {[%emt 0:00:11]} Nxd5+ {[%emt 0:00:43]} 43. exd5 {[%emt 0:00:14]} Rd4 {[%emt 0:00:35]} 44. Rd6 {[%emt 0:01:10]} h4 {[%emt 0:00:45]} 45. Kf3 {[%emt 0:00:49]} Kf8 {[%emt 0:00:07]} 46. Ke3 {[%emt 0:00:36]} Ke7 {[%emt 0:00:32]} 47. Ra6 {[%emt 0:00:23]} f6 {[%emt 0:00:13]} 48. Ra7+ {[%emt 0:00:31]} Kf8 {[%emt 0:00:33]} 49. Ra5 {[%emt 0:00:26]} Kf7 {[%emt 0:00:16]} 50. Ra7+ {[%emt 0:00:31]} Ke8 {[%emt 0:00:33]} 51. Ra6 {[%emt 0:00:32]} Kf7 {[%emt 0:00:19]} 52. Ra7+ {[%emt 0:00:16]} Kg6 {[%emt 0:00:03]} 53. Ra5 {[%emt 0:00:49]} Kf5 {[%emt 0:00:25]} 54. Rb5 {[%emt 0:00:30]} Rd1 {[%emt 0:00:16]} 55. Ke2 {[%emt 0:00:20]} Ra1 {[%emt 0:00:39]} 56. Rb2 {[%emt 0:00:29]} Ra7 {[%emt 0:01:03]} 57. Ke3 {[%emt 0:00:23]} Ra3+ {[%emt 0:00:29]} 58. Ke2 {[%emt 0:00:19]} Rg3 {[%emt 0:00:15]} 59. Ke1 {[%emt 0:01:00]} Rd3 {[%emt 0:00:32]} 60. Rb5 {[%emt 0:00:30]} e4 {[%emt 0:00:30]} 61. Rb2 {[%emt 0:00:32]} Ke5 {[%emt 0:00:00]} 62. Rb6 {[%emt 0:00:29]} Rxd5 {[%emt 0:00:12]} 63. Ke2 {[%emt 0:00:24]} Kf4 {[%emt 0:00:34]} 64. Kf2 {[%emt 0:00:33]} f5 {[%emt 0:00:11]} 65. Kf1 {[%emt 0:00:09]} e3 {[%emt 0:00:26]} 66. Ke2 {[%emt 0:00:10]} Rd2+ {[%emt 0:00:21]} 67. Kf1 {[%emt 0:00:07]} Rf2+ {[%emt 0:00:12]} 68. Kg1 {[%emt 0:00:25]} Kg3 {[%emt 0:00:10]} 0-1

[Event "Belt and Road Women 2024"]
[Site "Yuecheng Shaoxing"]
[Date "2024.07.26"]
[Round "3.1"]
[White "Kurmangaliyeva, Liya"]
[Black "Garifullina, Leya"]
[Result "1/2-1/2"]
[ECO "B23"]
[WhiteElo "2282"]
[BlackElo "2458"]
[Annotator "TA"]
[PlyCount "99"]
[EventDate "2024.08.01"]
[EventType "swiss"]
[EventCountry "CHN"]
[SourceTitle "playchess.com"]
[Source "ChessBase"]
[SourceQuality "1"]
[TimeControl "5400+30"]

{[%evp 15,99,-23,0,0,0,19,51,42,48,29,79,12,24,22,30,18,60,65,74,79,86,74,74,18,60,44,43,30,39,33,90,111,133,128,124,128,96,89,147,147,150,156,142,163,150,157,220,193,227,214,189,155,160,21,17,19,27,80,272,275,281,270,281,268,281,281,270,271,268,278,256,89,82,82,91,0,0,0,8,8,32,0,0,0,69,0]} 1. e4 {[%emt 0:00:12]} c5 {[%emt 0:00:19]} 2. Nc3 {[%emt 0:00:15]} d6 {[%emt 0:00:05]} 3. d4 {[%emt 0:00:19]} cxd4 {[%emt 0:00:08]} 4. Qxd4 {[%emt 0:00:03]} Nc6 {[%emt 0:00:09]} 5. Qd2 {[%emt 0:00:14]} g6 {[%emt 0:00:15]} 6. b3 {[%emt 0:00:17] B23: Closed Sicilian: Lines without g3.} Bh6 {[%emt 0:00:05]} 7. f4 {[%emt 0:00:27]} Nf6 {[%emt 0:00:50]} 8. Bb2 {[%emt 0:00:21]} e5 {[%emt 0:00:06]} 9. g3 {[%emt 0:04:03]} O-O {[%emt 0:00:21]} 10. O-O-O {[%emt 0:00:45]} Nd4 {[%emt 0:01:05]} 11. Nge2 {[%emt 0:18:43]} Bg4 {[%emt 0:01:47]} 12. Nxd4 {[%emt 0:11:50]} Bxd1 {[%emt 0:06:14]} (12... exd4 $11 13. Qxd4 Bxd1 14. Nxd1 Bg7) 13. Nxd1 {[%emt 0:01:00]} (13. Qxd1 $16 {Ndb5 would now be deadly.} exd4 14. Qxd4) 13... exd4 $11 {[%emt 0:02:02]} 14. Qxd4 {[%emt 0:00:09]} Bg7 {[%emt 0:00:05]} 15. Bg2 {[%emt 0:01:04]} a5 $146 {[%emt 0:04:44]} ({Predecessor:} 15... Qb6 16. Qxb6 axb6 17. a4 Rfe8 18. Re1 Rac8 19. Kb1 Nd5 20. c4 Nb4 21. Re3 d5 {0-1 Giannoulis,G (1854)-Tzortzatos,D (1832) GRE-ch U16 Peristeri 2023 (9)}) 16. a4 {[%emt 0:07:32]} Rb8 {[%emt 0:03:40]} 17. Nc3 {[%emt 0:09:57]} Ne8 {[%emt 0:05:16]} 18. Qd3 {[%emt 0:10:31]} Qb6 {[%emt 0:05:07]} 19. Nb5 {[%emt 0:05:03]} (19. Ba3 $16) 19... Qf2 {[%emt 0:04:54]} 20. Bh3 {[%emt 0:03:50]} Bxb2+ {[%emt 0:04:35]} 21. Kxb2 {[%emt 0:00:03]} Ra8 {[%emt 0:02:33]} 22. Qc3 {[%emt 0:07:33]} (22. Nxd6 Nxd6 23. Qxd6 Rfd8 $15) 22... Ra6 {[%emt 0:03:02]} (22... Rd8 $14) 23. Bd7 $16 {[%emt 0:00:50]} Qg2 {[%emt 0:02:58]} 24. Re1 {[%emt 0:09:24]} Qxh2 {[%emt 0:01:22]} 25. e5 {[%emt 0:00:08]} dxe5 {[%emt 0:00:26]} 26. fxe5 {[%emt 0:00:02]} Qf2 {[%emt 0:16:21]} (26... Qh6 $142) 27. e6 $16 {[%emt 0:04:07]} fxe6 {[%emt 0:03:57]} 28. Bxe6+ {[%emt 0:00:02]} Rxe6 {[%emt 0:00:04]} 29. Rxe6 {[%emt 0:00:02]} Qf7 {[%emt 0:00:05]} 30. Rb6 {[%emt 0:01:52]} Nf6 {[%emt 0:00:40]} (30... Qd5 $16 31. Qxa5 Rf6) 31. Nd6 {[%emt 0:01:43]} Nd5 {[%emt 0:04:31]} 32. Nxf7 {[%emt 0:01:26]} (32. Qxa5 $2 Qf6+ 33. Ka2 Nxb6 34. Qxb6 Rd8 $19) (32. Rxb7 $2 Qxb7 33. Nxb7 Nxc3 34. Kxc3 h5 35. Nxa5 g5 $19 (35... Rf3+ $2 36. Kb4 $19)) 32... Nxc3 {[%emt 0:00:04]} 33. Nd6 {[%emt 0:02:40]} (33. Rxb7 Nxa4+ 34. bxa4 Rxf7 $11) 33... Ne2 {[%emt 0:00:20]} 34. Rxb7 {[%emt 0:00:28]} (34. Nxb7 $16 Nxg3 35. Nxa5) 34... Nxg3 $11 {[%emt 0:00:15]} 35. c4 {[%emt 0:00:32]} h5 {[%emt 0:01:08]} 36. c5 {[%emt 0:00:21]} h4 $2 {[%emt 0:00:28]} (36... Nf5 $16) 37. c6 $18 {[%emt 0:00:32]} h3 {[%emt 0:00:03]} 38. c7 {[%emt 0:00:13]} h2 {[%emt 0:00:09]} 39. Rb8 {[%emt 0:00:12]} (39. c8=B $2 Rf2+ (39... h1=R 40. Be6+ Kh8 41. Nf7+ Kg7 42. Ra7 $19) 40. Kc3 h1=Q $19 (40... h1=R $2 41. Be6+ Kf8 42. Kd4 $19)) 39... h1=Q {[%emt 0:00:18]} 40. Rxf8+ {[%emt 0:00:03]} (40. c8=B Rf2+ 41. Kc3 Ne2+ 42. Kd2 Qc1+ 43. Kd3 Qc3+ 44. Ke4 Qd4#) 40... Kxf8 {[%emt 0:00:04]} 41. c8=Q+ {[%emt 0:00:03]} (41. c8=R+ $2 {perishes.} Ke7 42. Nc4 Qd5 (42... Qb7 $2 43. Rc5 $19) 43. Rc7+ Kf6 $19) 41... Ke7 {[%emt 0:00:16]} 42. Qc7+ {[%emt 0:00:24]} Ke6 {[%emt 0:00:28] [#]} 43. Nc4 $2 {[%emt 0:00:40]} (43. Qb6 $1 $18 {is the precise move to win.}) 43... Qe1 $16 {[%emt 0:02:34]} 44. Qc6+ {[%emt 0:01:15]} (44. Qc5 {simplifies} Kf6 45. Nxa5 Qe5+ 46. Qxe5+ Kxe5 47. b4) 44... Kf5 {[%emt 0:00:35]} 45. Nd6+ {[%emt 0:00:11]} ({White should try} 45. Qd7+ $16 Kg5 46. Qd8+ Kf4 47. Qd6+ (47. Qxa5 Qxa5 48. Nxa5 g5 $16) (47. Nxa5 Ne4 $16) 47... Kf5 48. Qd3+ Kf6 49. Qd8+ Kf5 50. Qd3+ (50. Nxa5 Ne2 $16) (50. Qxa5+ Qxa5 51. Nxa5 Ke6 $16) 50... Kf6 51. Qd6+ Kg7 52. Nxa5) 45... Kf4 $11 {[%emt 0:01:47]} 46. Qc4+ {[%emt 0:00:30]} Ke5 {[%emt 0:01:29]} 47. Qc5+ {[%emt 0:00:56]} Kf4 {[%emt 0:00:40]} 48. Qc4+ {[%emt 0:01:01]} Ke5 {[%emt 0:00:04]} 49. Qc5+ {[%emt 0:00:02]} ({White should play} 49. Nb7 $11) 49... Kf4 $14 {[%emt 0:00:03]} 50. Qc4+ {[%emt 0:00:34]} (50. Qd4+ $14 Kg5 51. Nc4) 1/2-1/2

[Event "Belt and Road Women 2024"]
[Site "Yuecheng Shaoxing"]
[Date "2024.07.26"]
[Round "3.2"]
[White "Tan, Zhongyi"]
[Black "Zhai, Mo"]
[Result "1-0"]
[ECO "C65"]
[WhiteElo "2540"]
[BlackElo "2348"]
[Annotator "TA"]
[PlyCount "69"]
[EventDate "2024.08.01"]
[EventType "swiss"]
[EventCountry "CHN"]
[SourceTitle "playchess.com"]
[Source "ChessBase"]
[SourceQuality "1"]
[TimeControl "5400+30"]

{[%evp 9,69,17,29,5,14,14,6,4,14,0,0,0,0,-9,16,-8,0,0,15,0,0,0,22,0,0,0,9,0,0,0,31,24,36,0,9,0,0,0,15,0,41,0,0,0,10,10,10,38,55,0,0,0,0,0,677,647,29978,29979,29979,29980,29979,29980]} 1. e4 {[%emt 0:00:07]} e5 {[%emt 0:00:11]} 2. Nf3 {[%emt 0:00:06]} Nc6 {[%emt 0:00:10]} 3. Bb5 {[%emt 0:00:19]} Nf6 {[%emt 0:00:28]} 4. d3 {[%emt 0:00:09]} Bc5 {[%emt 0:00:25]} 5. Bxc6 {[%emt 0:00:10]} dxc6 {[%emt 0:00:13]} 6. Nbd2 {[%emt 0:00:06][%cal Oe1g1]} (6. Nxe5 $2 {too greedy.} Qd4 7. Be3 Qxe5 $19) 6... Nd7 {[%emt 0:04:56]} 7. O-O {[%emt 0:00:11]} O-O {[%emt 0:03:03]} 8. Nc4 {[%emt 0:00:11] The position is equal.} Re8 {[%emt 0:03:45]} 9. a4 {[%emt 0:01:00]} a5 {[%emt 0:06:22]} 10. Kh1 {[%emt 0:00:20]} b6 {[%emt 0:03:27]} 11. Be3 {[%emt 0:05:01]} Bf8 {[%emt 0:05:32]} 12. b3 {[%emt 0:08:52]} Ba6 {[%emt 0:05:20]} 13. Nfd2 {[%emt 0:01:21]} Nc5 {[%emt 0:00:56]} 14. Qh5 {[%emt 0:06:06]} g6 {[%emt 0:21:57]} 15. Qh3 {[%emt 0:01:59]} Qe7 {[%emt 0:07:36]} 16. Bh6 {[%emt 0:10:33]} (16. f4 {looks sharper.} exf4 17. Rxf4 Bg7 18. Raf1) 16... f6 {[%emt 0:15:23]} 17. f4 {[%emt 0:04:28]} exf4 $1 {[%emt 0:00:40]} 18. Rxf4 {[%emt 0:00:58]} Bxh6 {[%emt 0:06:10]} 19. Qxh6 {[%emt 0:00:34]} Ne6 {[%emt 0:00:39][%cal Oa6c4] ...Bxc4! would now be deadly.} 20. Rf2 {[%emt 0:01:29]} Qg7 {[%emt 0:01:23]} 21. Qh3 {[%emt 0:13:43] Threatens to win with Raf1.} Bxc4 {[%emt 0:03:10]} 22. bxc4 {[%emt 0:03:04] Black must now prevent Raf1.} Re7 {[%emt 0:02:54]} 23. Raf1 {[%emt 0:03:20]} Rf8 {[%emt 0:00:06]} 24. g4 {[%emt 0:10:36]} Ref7 {[%emt 0:03:34]} 25. Nf3 {[%emt 0:00:37][%cal Bd2f3,Bf3d4,Bd4c6,Bc6e5][%mdl 32]} Nc5 {[%emt 0:01:15][%cal Of8e8]} 26. Qh4 {[%emt 0:09:34]} Nxa4 {[%emt 0:01:01]} 27. Nd4 {[%emt 0:00:19]} Re8 {[%emt 0:02:23] Dodges Ne6} 28. Nxc6 {[%emt 0:01:57][%cal Oe4e5] Strongly threatening e5!} Rff8 $1 {[%emt 0:00:29] [#]} 29. e5 {[%emt 0:03:02]} g5 $11 {[%emt 0:00:32]} 30. Qh5 $36 {[%emt 0:00:05][%mdl 2048] White is pushing.} fxe5 {[%emt 0:00:55]} 31. Rf5 {[%emt 0:00:07]} h6 $2 {[%emt 0:00:22][%mdl 8192] [#]} (31... Nc5 $11) 32. Nxe5 $1 $18 {[%emt 0:01:19][%mdl 512]} Rxf5 {[%emt 0:00:37]} (32... Qxe5 33. Rxe5) 33. Qxe8+ {[%emt 0:00:07] White mates.} Rf8 {[%emt 0:00:06] Black is weak on the light squares} 34. Rxf8+ {[%emt 0:00:23]} (34. Qxa4 {gets mated.} Rxf1+ 35. Kg2 Qf8) 34... Qxf8 {[%emt 0:00:05]} 35. Qe6+ {[%emt 0:00:04] Weighted Error Value: White=0.10 (very precise) /Black=0.49.  Loses game:     	---       	Black=1      Mistake:       	White=1     	---        Inaccurate:     	White=2     	Black=3      OK:         	White=6     	Black=13     Best:        	White=1     	Black=1      Strong:       	---       	Black=2} (35. Qxa4 $2 Qf1#) 1-0

[Event "Belt and Road Women 2024"]
[Site "Yuecheng Shaoxing"]
[Date "2024.07.26"]
[Round "3.3"]
[White "Wagner, Dinara"]
[Black "Ni, Shiqun"]
[Result "1/2-1/2"]
[ECO "D27"]
[WhiteElo "2454"]
[BlackElo "2352"]
[Annotator "RC"]
[PlyCount "67"]
[EventDate "2024.08.01"]
[EventType "swiss"]
[EventCountry "CHN"]
[SourceTitle "playchess.com"]
[Source "ChessBase"]
[SourceQuality "1"]
[TimeControl "5400+30"]

1. d4 {[%emt 0:00:01]} d5 {[%emt 0:01:34]} 2. c4 {[%emt 0:00:08]} dxc4 {[%emt 0:00:16]} 3. Nf3 {[%emt 0:00:05]} Nf6 {[%emt 0:00:05]} 4. e3 {[%emt 0:00:03]} e6 {[%emt 0:00:05]} 5. Bxc4 {[%emt 0:00:04]} c5 {[%emt 0:00:05]} 6. O-O {[%emt 0:00:14]} a6 {[%emt 0:00:04]} 7. e4 {[%emt 0:01:00]} b5 {[%emt 0:00:52]} 8. Be2 {[%emt 0:00:29]} Nxe4 {[%emt 0:00:30]} 9. a4 {[%emt 0:01:11]} b4 {[%emt 0:02:00]} 10. Nbd2 {[%emt 0:02:13]} Bb7 {[%emt 0:00:25]} 11. Nxe4 {[%emt 0:08:23]} Bxe4 {[%emt 0:00:07]} 12. Be3 {[%emt 0:00:03]} cxd4 {[%emt 0:01:42]} 13. Nxd4 {[%emt 0:00:17]} Nc6 {[%emt 0:00:12]} 14. Bf3 {[%emt 0:03:23]} Bxf3 {[%emt 0:00:13]} 15. Qxf3 {[%emt 0:00:04]} Nxd4 {[%emt 0:00:10]} 16. Bxd4 {[%emt 0:00:05]} Qd5 {[%emt 0:00:11]} 17. Qxd5 {[%emt 0:00:58]} exd5 {[%emt 0:00:05]} 18. Rfe1+ {[%emt 0:16:50]} Kd7 {[%emt 0:00:12]} 19. Re5 {[%emt 0:05:45]} f6 {[%emt 0:10:01]} 20. Rxd5+ {[%emt 0:00:22]} Kc6 {[%emt 0:00:06]} 21. Rh5 {[%emt 0:04:58]} Bd6 {[%emt 0:00:54]} 22. Kf1 {[%emt 0:06:29]} h6 {[%emt 0:09:11]} 23. Rc1+ {[%emt 0:12:14]} Kb7 {[%emt 0:00:16]} 24. Rd5 {[%emt 0:08:18]} Rhd8 {[%emt 0:12:52]} 25. h3 {[%emt 0:03:52]} Bc7 {[%emt 0:13:39]} 26. Rxd8 {[%emt 0:03:44]} Rxd8 {[%emt 0:00:03]} 27. Rc4 {[%emt 0:00:36]} a5 {[%emt 0:00:03]} 28. Ke2 {[%emt 0:02:05]} Bb6 {[%emt 0:00:04]} 29. Bxb6 {[%emt 0:04:48]} Kxb6 {[%emt 0:00:01]} 30. g4 {[%emt 0:01:44]} Re8+ {[%emt 0:13:17]} 31. Kd2 {[%emt 0:00:15]} Rd8+ {[%emt 0:00:12]} 32. Ke2 {[%emt 0:02:54]} Re8+ {[%emt 0:00:02]} 33. Kd2 {[%emt 0:01:08]} Rd8+ {[%emt 0:00:07]} 34. Ke2 {[%emt 0:00:03]} 1/2-1/2